[Event "Early-Titled-Tuesday-Blitz-February-27-2024"]
[Site "Chess.com"]
[Date "2024.02.27"]
[Round "3"]
[White "Vaathi_Coming"]
[Black "FontVella8"]
[Result "0-1"]
[WhiteElo "2910"]
[BlackElo "2713"]
[TimeControl "180+1"]
[EndTime "8:28:41 PST"]
[Termination "FontVella8 won by checkmate"]

1. Nf3 {[%clk 0:03:00.9]} 1... Nf6 {[%clk 0:02:59.7]} 2. g3 {[%clk 0:02:59.2]}
2... e6 {[%clk 0:03:00]} 3. Bg2 {[%clk 0:02:59.6]} 3... Be7 {[%clk 0:03:00.6]}
4. O-O {[%clk 0:03:00.5]} 4... O-O {[%clk 0:03:01.2]} 5. a4 {[%clk 0:02:59.4]}
5... d5 {[%clk 0:03:00.2]} 6. d4 {[%clk 0:02:59]} 6... a5 {[%clk 0:02:55.6]} 7.
c3 {[%clk 0:02:55.7]} 7... b6 {[%clk 0:02:55.3]} 8. Bf4 {[%clk 0:02:54]} 8...
Ba6 {[%clk 0:02:54.6]} 9. Na3 {[%clk 0:02:52.1]} 9... c6 {[%clk 0:02:52.2]} 10.
Ne5 {[%clk 0:02:51.1]} 10... Nfd7 {[%clk 0:02:48.2]} 11. Nd3 {[%clk 0:02:49.5]}
11... Re8 {[%clk 0:02:39.9]} 12. Re1 {[%clk 0:02:49]} 12... Nf6 {[%clk
0:02:27.4]} 13. Ne5 {[%clk 0:02:48]} 13... Qc8 {[%clk 0:02:20.1]} 14. c4 {[%clk
0:02:14.3]} 14... Bb4 {[%clk 0:02:14.5]} 15. Bd2 {[%clk 0:02:08]} 15... Nbd7
{[%clk 0:02:09.5]} 16. Rc1 {[%clk 0:01:58.6]} 16... Bxa3 {[%clk 0:01:17.4]} 17.
bxa3 {[%clk 0:01:56.1]} 17... Nxe5 {[%clk 0:00:57.4]} 18. dxe5 {[%clk
0:01:55.2]} 18... Ne4 {[%clk 0:00:58]} 19. Be3 {[%clk 0:01:32.1]} 19... Nc5
{[%clk 0:00:57]} 20. cxd5 {[%clk 0:01:19.6]} 20... cxd5 {[%clk 0:00:56.8]} 21.
Qd2 {[%clk 0:00:28.2]} 21... Qc7 {[%clk 0:00:45.7]} 22. Bd4 {[%clk 0:00:14]}
22... Rec8 {[%clk 0:00:37.2]} 23. Qe3 {[%clk 0:00:13]} 23... Qe7 {[%clk
0:00:34.7]} 24. h4 {[%clk 0:00:11.5]} 24... Rc7 {[%clk 0:00:32.6]} 25. Rb1
{[%clk 0:00:10.7]} 25... Nxa4 {[%clk 0:00:22.7]} 26. Bxb6 {[%clk 0:00:09.5]}
26... Rc3 {[%clk 0:00:17.8]} 27. Qd2 {[%clk 0:00:06.7]} 27... Rac8 {[%clk
0:00:08.2]} 28. Bxa5 {[%clk 0:00:06.3]} 28... Rc2 {[%clk 0:00:08.7]} 29. Qb4
{[%clk 0:00:06.3]} 29... Qxb4 {[%clk 0:00:07.7]} 30. Bxb4 {[%clk 0:00:05.4]}
30... Bxe2 {[%clk 0:00:06.5]} 31. Bd6 {[%clk 0:00:03.2]} 31... h6 {[%clk
0:00:06.1]} 32. Rb7 {[%clk 0:00:03.2]} 32... Nc3 {[%clk 0:00:04.3]} 33. Bf1
{[%clk 0:00:02.4]} 33... Bxf1 {[%clk 0:00:04.4]} 34. Rxf1 {[%clk 0:00:02.7]}
34... Ne4 {[%clk 0:00:04]} 35. Bb4 {[%clk 0:00:03]} 35... Ra2 {[%clk 0:00:03.7]}
36. Rd7 {[%clk 0:00:03.5]} 36... Rcc2 {[%clk 0:00:03.3]} 37. Rd8+ {[%clk
0:00:02.8]} 37... Kh7 {[%clk 0:00:03.7]} 38. Be1 {[%clk 0:00:02.7]} 38... g5
{[%clk 0:00:04.1]} 39. h5 {[%clk 0:00:02.7]} 39... g4 {[%clk 0:00:04.6]} 40. Rd7
{[%clk 0:00:02.6]} 40... Kg7 {[%clk 0:00:04.6]} 41. Kg2 {[%clk 0:00:02.9]} 41...
Ng5 {[%clk 0:00:03.3]} 42. Bb4 {[%clk 0:00:02.7]} 42... Nf3 {[%clk 0:00:03.3]}
43. Rd8 {[%clk 0:00:02.6]} 43... Nxe5 {[%clk 0:00:02.9]} 44. Bf8+ {[%clk
0:00:03]} 44... Kh7 {[%clk 0:00:03]} 45. Be7 {[%clk 0:00:03.3]} 45... Nd3 {[%clk
0:00:03.1]} 46. Bf6 {[%clk 0:00:03.5]} 46... Rxf2+ {[%clk 0:00:03.4]} 47. Kg1
{[%clk 0:00:03.1]} 47... Rg2+ {[%clk 0:00:03.2]} 48. Kh1 {[%clk 0:00:03]} 48...
Rh2+ {[%clk 0:00:04.1]} 49. Kg1 {[%clk 0:00:03.5]} 49... Rag2# {[%clk 0:00:05]}
0-1

[Event "Early-Titled-Tuesday-Blitz-February-27-2024"]
[Site "Chess.com"]
[Date "2024.02.27"]
[Round "3"]
[White "nihalsarin"]
[Black "MightyGMpretender"]
[Result "0-1"]
[WhiteElo "3188"]
[BlackElo "2787"]
[TimeControl "180+1"]
[EndTime "8:28:44 PST"]
[Termination "MightyGMpretender won by resignation"]

1. e4 {[%clk 0:03:00.9]} 1... c5 {[%clk 0:02:58.3]} 2. Nc3 {[%clk 0:03:01.8]}
2... Nc6 {[%clk 0:02:57.9]} 3. Nf3 {[%clk 0:02:58.4]} 3... d6 {[%clk 0:02:56.4]}
4. Bb5 {[%clk 0:02:55.7]} 4... e5 {[%clk 0:02:51.4]} 5. d3 {[%clk 0:02:54.7]}
5... Ne7 {[%clk 0:02:41.8]} 6. Bc4 {[%clk 0:02:53.1]} 6... Na5 {[%clk
0:02:33.2]} 7. h4 {[%clk 0:02:36.2]} 7... a6 {[%clk 0:02:05]} 8. a4 {[%clk
0:02:32.2]} 8... Nxc4 {[%clk 0:02:04.1]} 9. dxc4 {[%clk 0:02:33.1]} 9... Bg4
{[%clk 0:02:00.2]} 10. Qd3 {[%clk 0:02:32]} 10... Nc6 {[%clk 0:01:59.1]} 11. Nd5
{[%clk 0:02:31.1]} 11... Nb4 {[%clk 0:01:50.9]} 12. Nxb4 {[%clk 0:02:28.9]}
12... cxb4 {[%clk 0:01:50.8]} 13. h5 {[%clk 0:02:18.8]} 13... Be7 {[%clk
0:01:47]} 14. h6 {[%clk 0:02:18.1]} 14... g6 {[%clk 0:01:46.3]} 15. Be3 {[%clk
0:02:18]} 15... O-O {[%clk 0:01:42.6]} 16. a5 {[%clk 0:02:18.1]} 16... Rc8
{[%clk 0:01:37.2]} 17. Bb6 {[%clk 0:02:13.4]} 17... Qd7 {[%clk 0:01:36.4]} 18.
O-O-O {[%clk 0:02:14.1]} 18... Qa4 {[%clk 0:01:25]} 19. Kb1 {[%clk 0:02:12.5]}
19... Qc6 {[%clk 0:01:06.8]} 20. b3 {[%clk 0:02:12.1]} 20... f5 {[%clk
0:00:52.4]} 21. exf5 {[%clk 0:02:02.5]} 21... Bxf3 {[%clk 0:00:40.7]} 22. gxf3
{[%clk 0:01:57.4]} 22... Rxf5 {[%clk 0:00:40.9]} 23. Rhg1 {[%clk 0:01:51.3]}
23... Rcf8 {[%clk 0:00:40.2]} 24. f4 {[%clk 0:01:49.1]} 24... exf4 {[%clk
0:00:34.5]} 25. Rde1 {[%clk 0:01:48.7]} 25... Qd7 {[%clk 0:00:20.1]} 26. Bd4
{[%clk 0:01:36.4]} 26... Bf6 {[%clk 0:00:18.6]} 27. Bxf6 {[%clk 0:01:36.4]}
27... R5xf6 {[%clk 0:00:18.9]} 28. Qd4 {[%clk 0:01:28.1]} 28... R6f7 {[%clk
0:00:17.6]} 29. Re4 {[%clk 0:01:22.2]} 29... Qf5 {[%clk 0:00:17.5]} 30. Rge1
{[%clk 0:01:22.1]} 30... Qg5 {[%clk 0:00:14.9]} 31. Rh1 {[%clk 0:01:13.4]} 31...
f3 {[%clk 0:00:13.4]} 32. Qxd6 {[%clk 0:01:05.6]} 32... Qxa5 {[%clk 0:00:13.5]}
33. Re7 {[%clk 0:00:58.4]} 33... Qd8 {[%clk 0:00:09.4]} 34. Qxd8 {[%clk
0:00:50]} 34... Rxd8 {[%clk 0:00:10.3]} 35. Rhe1 {[%clk 0:00:50.7]} 35... Rxe7
{[%clk 0:00:09.9]} 36. Rxe7 {[%clk 0:00:51.6]} 36... Rd2 {[%clk 0:00:09.9]} 37.
Rg7+ {[%clk 0:00:52.3]} 37... Kf8 {[%clk 0:00:09.6]} 38. Rxh7 {[%clk 0:00:52.1]}
38... Rxf2 {[%clk 0:00:09.9]} 39. Rxb7 {[%clk 0:00:52.9]} 39... Rh2 {[%clk
0:00:10]} 40. Rb8+ {[%clk 0:00:42]} 40... Kf7 {[%clk 0:00:09.8]} 41. Rb7+ {[%clk
0:00:42.6]} 41... Kf6 {[%clk 0:00:08.5]} 42. Rb8 {[%clk 0:00:43.1]} 42... Kg5
{[%clk 0:00:07.7]} 43. Rf8 {[%clk 0:00:38.3]} 43... Kg4 {[%clk 0:00:08.1]} 44.
c5 {[%clk 0:00:32.3]} 44... Rxh6 {[%clk 0:00:08.5]} 45. c3 {[%clk 0:00:31.1]}
45... bxc3 {[%clk 0:00:08.2]} 46. Kc2 {[%clk 0:00:31.8]} 46... g5 {[%clk
0:00:08.2]} 47. Kxc3 {[%clk 0:00:32.5]} 47... Kg3 {[%clk 0:00:08.5]} 48. Kc4
{[%clk 0:00:31.6]} 48... f2 {[%clk 0:00:08.9]} 49. Kd5 {[%clk 0:00:25.8]} 49...
g4 {[%clk 0:00:06.9]} 50. c6 {[%clk 0:00:25.9]} 50... Rh7 {[%clk 0:00:07.1]} 51.
Rg8 {[%clk 0:00:09]} 51... f1=Q {[%clk 0:00:06.1]} 0-1

[Event "Early-Titled-Tuesday-Blitz-February-27-2024"]
[Site "Chess.com"]
[Date "2024.02.27"]
[Round "3"]
[White "GlavkonVVS"]
[Black "ChessboArt"]
[Result "1-0"]
[WhiteElo "2558"]
[BlackElo "2260"]
[TimeControl "180+1"]
[EndTime "8:28:44 PST"]
[Termination "GlavkonVVS won on time"]

1. c4 {[%clk 0:03:00.9]} 1... e5 {[%clk 0:02:59.6]} 2. Nc3 {[%clk 0:03:01]} 2...
Nc6 {[%clk 0:03:00.2]} 3. g3 {[%clk 0:03:01.2]} 3... g6 {[%clk 0:03:00.7]} 4.
Bg2 {[%clk 0:03:01.6]} 4... Bg7 {[%clk 0:03:01.2]} 5. d3 {[%clk 0:03:00.9]} 5...
d6 {[%clk 0:03:01.7]} 6. Nf3 {[%clk 0:03:01.4]} 6... h6 {[%clk 0:03:02.3]} 7.
O-O {[%clk 0:03:01.9]} 7... Be6 {[%clk 0:03:02.7]} 8. Rb1 {[%clk 0:03:02.6]}
8... a5 {[%clk 0:03:01.7]} 9. a3 {[%clk 0:03:02.6]} 9... Qd7 {[%clk 0:03:02.3]}
10. h4 {[%clk 0:03:01.7]} 10... Bh3 {[%clk 0:02:58.8]} 11. b4 {[%clk 0:03:01.7]}
11... axb4 {[%clk 0:02:58.6]} 12. axb4 {[%clk 0:03:01.2]} 12... Bxg2 {[%clk
0:02:58.8]} 13. Kxg2 {[%clk 0:03:01.8]} 13... Nf6 {[%clk 0:02:43.9]} 14. b5
{[%clk 0:03:01.9]} 14... Nd8 {[%clk 0:02:43.7]} 15. e4 {[%clk 0:03:01.9]} 15...
Ne6 {[%clk 0:02:35.5]} 16. Nd5 {[%clk 0:03:00.9]} 16... Ng4 {[%clk 0:02:25.9]}
17. Bd2 {[%clk 0:02:38.2]} 17... O-O {[%clk 0:02:18.2]} 18. h5 {[%clk
0:02:24.6]} 18... g5 {[%clk 0:01:28.4]} 19. Qe2 {[%clk 0:02:15]} 19... Ra2
{[%clk 0:01:21.4]} 20. Nc3 {[%clk 0:02:03.1]} 20... Ra3 {[%clk 0:01:13.3]} 21.
Ra1 {[%clk 0:01:57.9]} 21... Rfa8 {[%clk 0:01:12.9]} 22. Rxa3 {[%clk 0:01:56.8]}
22... Rxa3 {[%clk 0:01:13.8]} 23. Nd5 {[%clk 0:01:43.5]} 23... Nc5 {[%clk
0:01:10]} 24. Bb4 {[%clk 0:01:43.2]} 24... Ra4 {[%clk 0:00:47.8]} 25. Bxc5
{[%clk 0:01:36.4]} 25... dxc5 {[%clk 0:00:48.7]} 26. Rb1 {[%clk 0:01:19.3]}
26... Kh7 {[%clk 0:00:40.8]} 27. Nd2 {[%clk 0:00:24.5]} 27... Nf6 {[%clk
0:00:37.2]} 28. Nb3 {[%clk 0:00:23.6]} 28... b6 {[%clk 0:00:28]} 29. Nd2 {[%clk
0:00:21.9]} 29... g4 {[%clk 0:00:25]} 30. Nf1 {[%clk 0:00:21.7]} 30... Nxh5
{[%clk 0:00:22.6]} 31. Nfe3 {[%clk 0:00:21.9]} 31... Nf6 {[%clk 0:00:22.6]} 32.
Nxf6+ {[%clk 0:00:21.6]} 32... Bxf6 {[%clk 0:00:23.5]} 33. Nxg4 {[%clk
0:00:21.9]} 33... Bg7 {[%clk 0:00:24.2]} 34. Ne3 {[%clk 0:00:22.1]} 34... Ra3
{[%clk 0:00:22.4]} 35. Nd5 {[%clk 0:00:22.2]} 35... Qd6 {[%clk 0:00:08.9]} 36.
Rh1 {[%clk 0:00:21.7]} 36... c6 {[%clk 0:00:05.8]} 37. bxc6 {[%clk 0:00:21.3]}
37... Qxc6 {[%clk 0:00:06.7]} 38. Qh5 {[%clk 0:00:20.1]} 38... Qg6 {[%clk
0:00:06.2]} 39. Qf3 {[%clk 0:00:19.1]} 39... Rb3 {[%clk 0:00:02.6]} 40. Ne7
{[%clk 0:00:18.1]} 40... Qe6 {[%clk 0:00:01.8]} 41. Nf5 {[%clk 0:00:18.3]} 41...
b5 {[%clk 0:00:02.5]} 42. cxb5 {[%clk 0:00:18.1]} 42... Rxb5 {[%clk 0:00:02.2]}
43. Qg4 {[%clk 0:00:16.1]} 43... Qg6 {[%clk 0:00:02.4]} 44. Qe2 {[%clk
0:00:14.8]} 44... Rb3 {[%clk 0:00:02.7]} 45. Rc1 {[%clk 0:00:14.9]} 45... Qe6
{[%clk 0:00:02.5]} 46. Rxc5 {[%clk 0:00:14]} 46... Ra3 {[%clk 0:00:02.6]} 47.
Qc2 {[%clk 0:00:12.3]} 47... Ra2 {[%clk 0:00:02.9]} 48. Qc4 {[%clk 0:00:11.7]}
48... Qg6 {[%clk 0:00:02.8]} 49. Rc6 {[%clk 0:00:11.3]} 49... Qg5 {[%clk
0:00:03.1]} 50. Qxf7 {[%clk 0:00:10.8]} 50... Qxf5 {[%clk 0:00:01.2]} 51. Qxf5+
{[%clk 0:00:10.6]} 1-0

[Event "Early-Titled-Tuesday-Blitz-February-27-2024"]
[Site "Chess.com"]
[Date "2024.02.27"]
[Round "3"]
[White "lluiss"]
[Black "esrosenberg"]
[Result "0-1"]
[WhiteElo "2173"]
[BlackElo "2415"]
[TimeControl "180+1"]
[EndTime "8:28:44 PST"]
[Termination "esrosenberg won on time"]

1. Nf3 {[%clk 0:03:00.9]} 1... d5 {[%clk 0:02:59.7]} 2. d4 {[%clk 0:02:59.6]}
2... Bf5 {[%clk 0:03:00]} 3. c4 {[%clk 0:02:59.1]} 3... e6 {[%clk 0:03:00.4]} 4.
Qb3 {[%clk 0:02:58.2]} 4... Nc6 {[%clk 0:03:00.7]} 5. Bd2 {[%clk 0:02:56.3]}
5... Rb8 {[%clk 0:02:58.1]} 6. cxd5 {[%clk 0:02:55.8]} 6... exd5 {[%clk
0:02:58]} 7. Nc3 {[%clk 0:02:55.8]} 7... Nf6 {[%clk 0:02:58]} 8. Bg5 {[%clk
0:02:51.5]} 8... Na5 {[%clk 0:02:48.4]} 9. Qa4+ {[%clk 0:02:44.8]} 9... c6
{[%clk 0:02:48.7]} 10. Bxf6 {[%clk 0:02:42]} 10... gxf6 {[%clk 0:02:48.8]} 11.
e3 {[%clk 0:02:33.4]} 11... a6 {[%clk 0:02:43.9]} 12. Be2 {[%clk 0:02:18]} 12...
Rg8 {[%clk 0:02:37.3]} 13. Nh4 {[%clk 0:02:02.3]} 13... Be6 {[%clk 0:02:30.5]}
14. Bd3 {[%clk 0:02:00.7]} 14... h5 {[%clk 0:02:27.6]} 15. Qd1 {[%clk
0:01:51.1]} 15... Bg4 {[%clk 0:02:22.4]} 16. Be2 {[%clk 0:01:47.9]} 16... Nc4
{[%clk 0:02:18.4]} 17. b3 {[%clk 0:01:40.5]} 17... Bb4 {[%clk 0:02:17.5]} 18.
Rc1 {[%clk 0:01:39]} 18... Qa5 {[%clk 0:02:02.4]} 19. bxc4 {[%clk 0:01:31.5]}
19... Bxc3+ {[%clk 0:02:02.7]} 20. Kf1 {[%clk 0:01:32]} 20... dxc4 {[%clk
0:02:02.2]} 21. Bxg4 {[%clk 0:01:26.5]} 21... Rxg4 {[%clk 0:01:56.1]} 22. g3
{[%clk 0:01:18.2]} 22... b5 {[%clk 0:01:34.2]} 23. Qc2 {[%clk 0:01:13.5]} 23...
b4 {[%clk 0:01:24.4]} 24. h3 {[%clk 0:00:56.7]} 24... Rxh4 {[%clk 0:01:08.5]}
25. gxh4 {[%clk 0:00:54.7]} 25... Qd5 {[%clk 0:01:03.2]} 26. Rg1 {[%clk
0:00:49.4]} 26... Ke7 {[%clk 0:01:01.8]} 27. Rd1 {[%clk 0:00:38]} 27... Qf3
{[%clk 0:00:58.5]} 28. Rg3 {[%clk 0:00:30.1]} 28... Qh1+ {[%clk 0:00:51.3]} 29.
Ke2 {[%clk 0:00:30.1]} 29... Qd5 {[%clk 0:00:40.5]} 30. e4 {[%clk 0:00:30]}
30... Qe6 {[%clk 0:00:33]} 31. Re3 {[%clk 0:00:29.3]} 31... Rg8 {[%clk
0:00:31.3]} 32. d5 {[%clk 0:00:25.3]} 32... Qd6 {[%clk 0:00:22.9]} 33. dxc6
{[%clk 0:00:23.5]} 33... Qxc6 {[%clk 0:00:23.3]} 34. e5 {[%clk 0:00:20.9]} 34...
fxe5 {[%clk 0:00:18.9]} 35. Qf5 {[%clk 0:00:20.7]} 35... f6 {[%clk 0:00:16.1]}
36. Qxh5 {[%clk 0:00:17.5]} 36... Qg2 {[%clk 0:00:11.9]} 37. Qf3 {[%clk
0:00:14.6]} 37... Qxf3+ {[%clk 0:00:11.9]} 38. Kxf3 {[%clk 0:00:14.9]} 38... Ke6
{[%clk 0:00:11.6]} 39. Re4 {[%clk 0:00:15.1]} 39... Rc8 {[%clk 0:00:10.9]} 40.
h5 {[%clk 0:00:14]} 40... Bd4 {[%clk 0:00:10.8]} 41. h6 {[%clk 0:00:10.9]} 41...
c3 {[%clk 0:00:10]} 42. Rc1 {[%clk 0:00:11]} 42... a5 {[%clk 0:00:09.8]} 43. h7
{[%clk 0:00:09.9]} 43... a4 {[%clk 0:00:10.2]} 44. Rh4 {[%clk 0:00:09.4]} 44...
Rh8 {[%clk 0:00:10.7]} 45. Rh6 {[%clk 0:00:09.4]} 45... b3 {[%clk 0:00:10.4]}
46. axb3 {[%clk 0:00:06.9]} 46... axb3 {[%clk 0:00:10.9]} 47. Ra1 {[%clk
0:00:04.7]} 47... b2 {[%clk 0:00:09.9]} 48. Ra6+ {[%clk 0:00:04.4]} 48... Kd5
{[%clk 0:00:09.9]} 49. Rhxf6 {[%clk 0:00:03.6]} 49... b1=Q {[%clk 0:00:09.3]}
50. Rfd6+ {[%clk 0:00:03.5]} 50... Kc4 {[%clk 0:00:09.6]} 51. Rac6+ {[%clk
0:00:03.4]} 51... Kd3 {[%clk 0:00:09.9]} 0-1

[Event "Early-Titled-Tuesday-Blitz-February-27-2024"]
[Site "Chess.com"]
[Date "2024.02.27"]
[Round "3"]
[White "claudyna16"]
[Black "HATilay"]
[Result "1-0"]
[WhiteElo "2472"]
[BlackElo "2623"]
[TimeControl "180+1"]
[EndTime "8:28:45 PST"]
[Termination "claudyna16 won by resignation"]

1. c4 {[%clk 0:03:00.9]} 1... e5 {[%clk 0:02:59.5]} 2. g3 {[%clk 0:03:00.7]}
2... c6 {[%clk 0:02:59.4]} 3. Bg2 {[%clk 0:03:01]} 3... d5 {[%clk 0:02:59.8]} 4.
cxd5 {[%clk 0:02:59.5]} 4... cxd5 {[%clk 0:03:00.2]} 5. Qb3 {[%clk 0:02:59.7]}
5... Nf6 {[%clk 0:02:57.1]} 6. Nc3 {[%clk 0:02:59.7]} 6... e4 {[%clk 0:02:26.4]}
7. d3 {[%clk 0:02:57.8]} 7... exd3 {[%clk 0:02:20.2]} 8. Nxd5 {[%clk 0:02:54.8]}
8... Nxd5 {[%clk 0:01:40.1]} 9. Bxd5 {[%clk 0:02:53.4]} 9... Bb4+ {[%clk
0:01:40.1]} 10. Kf1 {[%clk 0:02:29.1]} 10... dxe2+ {[%clk 0:01:36.7]} 11. Nxe2
{[%clk 0:02:30]} 11... O-O {[%clk 0:01:36]} 12. Kg2 {[%clk 0:02:21.7]} 12... Na6
{[%clk 0:01:27.3]} 13. Rd1 {[%clk 0:02:20.9]} 13... Qf6 {[%clk 0:01:22]} 14. Be3
{[%clk 0:02:14.4]} 14... Bg4 {[%clk 0:01:10.8]} 15. f3 {[%clk 0:02:03.6]} 15...
Be6 {[%clk 0:00:40.7]} 16. Nf4 {[%clk 0:02:00.3]} 16... Rae8 {[%clk 0:00:29.2]}
17. Nxe6 {[%clk 0:01:36.7]} 17... fxe6 {[%clk 0:00:29.3]} 18. Be4 {[%clk
0:01:37.1]} 18... Bc5 {[%clk 0:00:26.7]} 19. Bd2 {[%clk 0:01:29.3]} 19... Bd4
{[%clk 0:00:21.4]} 20. Qd3 {[%clk 0:01:12]} 20... Nc5 {[%clk 0:00:21.5]} 21. Qe2
{[%clk 0:01:06.7]} 21... Bxb2 {[%clk 0:00:21.2]} 22. Rab1 {[%clk 0:01:04.4]}
22... Bd4 {[%clk 0:00:21.6]} 23. Bb4 {[%clk 0:01:04.5]} 23... Nxe4 {[%clk
0:00:20.2]} 24. Qxe4 {[%clk 0:01:04.1]} 24... Bb6 {[%clk 0:00:10.2]} 25. Bxf8
{[%clk 0:01:03]} 25... Rxf8 {[%clk 0:00:11.1]} 26. Rd7 {[%clk 0:01:02.3]} 26...
h6 {[%clk 0:00:04.5]} 27. Re1 {[%clk 0:00:57.1]} 27... Qc3 {[%clk 0:00:04.6]}
28. Re2 {[%clk 0:00:51.8]} 28... e5 {[%clk 0:00:02.6]} 29. Qxb7 {[%clk 0:00:49]}
29... Kh8 {[%clk 0:00:02.3]} 30. Rxg7 {[%clk 0:00:45.5]} 30... Qd3 {[%clk
0:00:02.8]} 31. Rxe5 {[%clk 0:00:26.3]} 31... Bd4 {[%clk 0:00:03.1]} 32. Rge7
{[%clk 0:00:12.9]} 32... Bxe5 {[%clk 0:00:03]} 33. Rxe5 {[%clk 0:00:13.8]} 33...
Qc2+ {[%clk 0:00:02.9]} 34. Kh3 {[%clk 0:00:13.9]} 34... Qg6 {[%clk 0:00:03.3]}
35. Qe7 {[%clk 0:00:13.2]} 35... h5 {[%clk 0:00:03.3]} 36. Qg5 {[%clk
0:00:12.4]} 36... Qxg5 {[%clk 0:00:03.5]} 37. Rxg5 {[%clk 0:00:13.3]} 37... Rxf3
{[%clk 0:00:04]} 38. Rxh5+ {[%clk 0:00:14.1]} 38... Kg7 {[%clk 0:00:04.6]} 39.
Ra5 {[%clk 0:00:14.1]} 39... Rf7 {[%clk 0:00:04.9]} 40. Kg4 {[%clk 0:00:14.5]}
40... Kg6 {[%clk 0:00:05.5]} 41. h4 {[%clk 0:00:14.7]} 41... Rc7 {[%clk
0:00:05.9]} 42. Ra6+ {[%clk 0:00:15.1]} 42... Kg7 {[%clk 0:00:06]} 43. Kh5
{[%clk 0:00:14.9]} 43... Rc5+ {[%clk 0:00:06.2]} 44. Kg4 {[%clk 0:00:15.3]}
44... Rc4+ {[%clk 0:00:06.8]} 45. Kh3 {[%clk 0:00:15.7]} 45... Rc7 {[%clk
0:00:07.7]} 46. h5 {[%clk 0:00:16]} 46... Kh7 {[%clk 0:00:07.7]} 47. g4 {[%clk
0:00:16.5]} 47... Kg7 {[%clk 0:00:07.3]} 48. Kh4 {[%clk 0:00:17]} 48... Kh7
{[%clk 0:00:07.8]} 49. h6 {[%clk 0:00:17.1]} 49... Rb7 {[%clk 0:00:07.2]} 50.
Kh5 {[%clk 0:00:16.8]} 50... Kh8 {[%clk 0:00:05.6]} 51. g5 {[%clk 0:00:17]}
51... Rc7 {[%clk 0:00:04.5]} 52. Rd6 {[%clk 0:00:16.7]} 52... Rc5 {[%clk
0:00:03.7]} 53. Rd8+ {[%clk 0:00:16.4]} 53... Kh7 {[%clk 0:00:03.9]} 54. Rd7+
{[%clk 0:00:16.9]} 54... Kh8 {[%clk 0:00:04.5]} 55. Rxa7 {[%clk 0:00:16.8]}
55... Rc2 {[%clk 0:00:04.9]} 56. a4 {[%clk 0:00:16.8]} 56... Rh2+ {[%clk
0:00:04.9]} 57. Kg6 {[%clk 0:00:16.6]} 1-0

[Event "Early-Titled-Tuesday-Blitz-February-27-2024"]
[Site "Chess.com"]
[Date "2024.02.27"]
[Round "3"]
[White "Nuvas"]
[Black "TheAlienParty"]
[Result "1-0"]
[WhiteElo "2764"]
[BlackElo "2424"]
[TimeControl "180+1"]
[EndTime "8:28:45 PST"]
[Termination "Nuvas won on time"]

1. d4 {[%clk 0:03:00.9]} 1... Nf6 {[%clk 0:02:59.1]} 2. c4 {[%clk 0:03:01.2]}
2... e6 {[%clk 0:02:58.9]} 3. Nc3 {[%clk 0:03:01.4]} 3... Bb4 {[%clk 0:02:58.6]}
4. Qc2 {[%clk 0:03:01.9]} 4... d5 {[%clk 0:02:51.2]} 5. a3 {[%clk 0:03:01.8]}
5... Bxc3+ {[%clk 0:02:50.6]} 6. Qxc3 {[%clk 0:03:02.4]} 6... a5 {[%clk
0:02:50.2]} 7. Bf4 {[%clk 0:02:59.2]} 7... c6 {[%clk 0:02:49.8]} 8. e3 {[%clk
0:02:58.3]} 8... O-O {[%clk 0:02:45.4]} 9. Nf3 {[%clk 0:02:58.3]} 9... Ne4
{[%clk 0:02:43.8]} 10. Qc2 {[%clk 0:02:58.5]} 10... b6 {[%clk 0:02:30.5]} 11.
Bd3 {[%clk 0:02:53.9]} 11... Ba6 {[%clk 0:02:30]} 12. O-O {[%clk 0:02:39.8]}
12... Nf6 {[%clk 0:02:24.6]} 13. Ne5 {[%clk 0:02:36.2]} 13... dxc4 {[%clk
0:02:22.6]} 14. Bxc4 {[%clk 0:02:34.5]} 14... Bxc4 {[%clk 0:02:21.2]} 15. Qxc4
{[%clk 0:02:35.4]} 15... Qd5 {[%clk 0:02:19.4]} 16. Rac1 {[%clk 0:02:35.4]}
16... b5 {[%clk 0:02:12.4]} 17. Qxd5 {[%clk 0:02:31.4]} 17... cxd5 {[%clk
0:02:11.3]} 18. Rc7 {[%clk 0:02:16.9]} 18... Na6 {[%clk 0:02:09.6]} 19. Rc6
{[%clk 0:02:17.3]} 19... a4 {[%clk 0:02:05.1]} 20. Rfc1 {[%clk 0:02:15.4]} 20...
b4 {[%clk 0:02:04.5]} 21. Nd3 {[%clk 0:02:08.1]} 21... bxa3 {[%clk 0:02:00.6]}
22. bxa3 {[%clk 0:02:07.7]} 22... Ne4 {[%clk 0:01:49.5]} 23. R1c2 {[%clk
0:01:56]} 23... Nb8 {[%clk 0:01:29.1]} 24. Rc8 {[%clk 0:01:28.8]} 24... Nd7
{[%clk 0:01:27.2]} 25. Rxf8+ {[%clk 0:01:29]} 25... Kxf8 {[%clk 0:01:26]} 26. f3
{[%clk 0:01:29]} 26... g5 {[%clk 0:01:18]} 27. fxe4 {[%clk 0:01:23.4]} 27...
gxf4 {[%clk 0:01:17.5]} 28. exd5 {[%clk 0:00:47]} 28... fxe3 {[%clk 0:01:16.8]}
29. dxe6 {[%clk 0:00:47.5]} 29... fxe6 {[%clk 0:01:16.5]} 30. Re2 {[%clk
0:00:48.2]} 30... Nb6 {[%clk 0:01:11.4]} 31. Rxe3 {[%clk 0:00:47.9]} 31... Nc4
{[%clk 0:01:11.2]} 32. Rf3+ {[%clk 0:00:47.8]} 32... Kg7 {[%clk 0:01:07]} 33.
Nc5 {[%clk 0:00:48.2]} 33... e5 {[%clk 0:00:58]} 34. Rc3 {[%clk 0:00:46.5]}
34... Nxa3 {[%clk 0:00:16.3]} 35. Rxa3 {[%clk 0:00:46]} 35... exd4 {[%clk
0:00:16.7]} 36. Ne6+ {[%clk 0:00:46.4]} 36... Kf6 {[%clk 0:00:16.5]} 37. Nxd4
{[%clk 0:00:47.1]} 37... Ke5 {[%clk 0:00:16.4]} 38. Nb5 {[%clk 0:00:45.3]} 38...
Rb8 {[%clk 0:00:15.8]} 39. Nc3 {[%clk 0:00:43.3]} 39... Rb3 {[%clk 0:00:15.6]}
40. Rxa4 {[%clk 0:00:38.7]} 40... Rxc3 {[%clk 0:00:15.3]} 41. Ra7 {[%clk
0:00:39.4]} 41... Rc1+ {[%clk 0:00:13.1]} 42. Kf2 {[%clk 0:00:39.2]} 42... Rc2+
{[%clk 0:00:13.4]} 43. Kg3 {[%clk 0:00:39.6]} 43... Rc3+ {[%clk 0:00:13.6]} 44.
Kh4 {[%clk 0:00:39.6]} 44... Rc2 {[%clk 0:00:13.7]} 45. Kh3 {[%clk 0:00:39.8]}
45... Rc3+ {[%clk 0:00:13.5]} 46. g3 {[%clk 0:00:40.2]} 46... h6 {[%clk
0:00:13.2]} 47. Ra6 {[%clk 0:00:40.2]} 47... h5 {[%clk 0:00:07]} 48. Ra5+ {[%clk
0:00:40.4]} 48... Kf6 {[%clk 0:00:07.3]} 49. Rxh5 {[%clk 0:00:41.1]} 49... Kg6
{[%clk 0:00:07.6]} 50. Rb5 {[%clk 0:00:40.4]} 50... Rc2 {[%clk 0:00:07.5]} 51.
Rb3 {[%clk 0:00:38.4]} 51... Ra2 {[%clk 0:00:07.4]} 52. g4 {[%clk 0:00:38.6]}
52... Kg5 {[%clk 0:00:06.5]} 53. Kg3 {[%clk 0:00:39.2]} 53... Ra1 {[%clk
0:00:05.8]} 54. h4+ {[%clk 0:00:39.6]} 54... Kh6 {[%clk 0:00:06.2]} 55. Rb6+
{[%clk 0:00:39.4]} 55... Kh7 {[%clk 0:00:06.5]} 56. h5 {[%clk 0:00:39.8]} 56...
Rg1+ {[%clk 0:00:05.7]} 57. Kh4 {[%clk 0:00:40.2]} 57... Ra1 {[%clk 0:00:05.7]}
58. Rb7+ {[%clk 0:00:37.4]} 58... Kh8 {[%clk 0:00:05.5]} 59. h6 {[%clk
0:00:36.9]} 59... Rh1+ {[%clk 0:00:04.7]} 60. Kg5 {[%clk 0:00:37.2]} 60... Ra1
{[%clk 0:00:05.2]} 61. Kh5 {[%clk 0:00:35.9]} 61... Rh1+ {[%clk 0:00:05]} 62.
Kg6 {[%clk 0:00:36.2]} 1-0